[Event "44th Chess Olympiad Open 2022"]
[Site "Chennai"]
[Date "2022.08.05"]
[Round "7.53"]
[White "Verdier, Patrice"]
[Black "Ndahangwapo, Heskiel"]
[Result "0-1"]
[ECO "E77"]
[WhiteElo "2017"]
[BlackElo "1904"]
[Annotator "TA"]
[PlyCount "116"]
[EventDate "2022.07.29"]
[EventType "team-tourn"]
[EventCountry "IND"]
[SourceTitle "playchess.com"]
[Source "ChessBase"]
[SourceQuality "1"]
[WhiteTeam "Monaco"]
[BlackTeam "Namibia"]
[WhiteTeamCountry "MNC"]
[BlackTeamCountry "NAM"]
[TimeControl "40/5400+30:1800+30"]

{[%evp 15,116,0,0,0,-5,-2,-9,-33,7,11,22,3,4,4,0,12,33,20,80,0,0,0,33,33,20,-40,116,108,101,18,128,137,137,129,124,135,209,104,150,137,145,154,338,271,277,9,47,48,42,-136,-145,-147,-130,-146,-147,-128,-139,-190,-102,-85,-95,-381,-373,-383,-435,-398,-327,-344,-204,-312,-292,-431,-425,-393,-470,-458,-446,-504,-502,-883,-757,-1042,-1387,-1114,-1046,-997,-989,-934,-936,-29982,-29983,-29982,-29983,-29983,-29984,-29984,-29985,-29993,-29991,-29991,-29992,-29992,-29993]} 1. d4 {[%emt 0:00:09]} Nf6 {[%emt 0:00:51]} 2. c4 {[%emt 0:00:09]} g6 {[%emt 0:00:06]} 3. Nc3 {[%emt 0:00:12]} Bg7 {[%emt 0:00:20]} 4. e4 {[%emt 0:00:25]} d6 {[%emt 0:00:12]} 5. f4 {[%emt 0:00:36]} O-O {[%emt 0:00:18]} 6. Nf3 {[%emt 0:00:06]} c5 {[%emt 0:05:00]} 7. d5 {[%emt 0:00:09]} Re8 {[%emt 0:00:33]} 8. Be2 {[%emt 0:20:56]} e6 {[%emt 0:00:52]} 9. dxe6 {[%emt 0:03:53] E77: King's Indian: Four Pawns Attack: 6 Be2 incl 6...c5 7 d5 e6 8 Nf3, but not Benoni.} Bxe6 {[%emt 0:00:32]} 10. O-O {[%emt 0:00:12]} Nc6 {[%emt 0:00:25]} 11. h3 {[%emt 0:03:43] The position is equal.} Nd4 {[%emt 0:06:32][%cal Of6e4]} 12. Bd3 {[%emt 0:03:23]} Bd7 {[%emt 0:01:35]} 13. Re1 {[%emt 0:06:34]} (13. Be3 $5 {[%cal Rf3d4]}) 13... Bc6 {[%emt 0:04:58] [#]} 14. Nxd4 $146 {[%emt 0:01:04]} ({Predecessor:} 14. Rb1 a6 15. Be3 Nxe4 16. Bxd4 Bxd4+ 17. Nxd4 Nxc3 18. bxc3 cxd4 19. cxd4 Qf6 20. Rxe8+ Rxe8 21. d5 Bd7 22. Rxb7 Qd4+ 23. Kh1 Bf5 24. Rb3 Re3 {0-1 (24) Genov,P (2425)-Minasian,A (2540) Berlin 1996}) 14... cxd4 {[%emt 0:00:09]} 15. Nd5 {[%emt 0:00:08]} Bxd5 {[%emt 0:00:51]} 16. cxd5 {[%emt 0:09:47]} Qb6 {[%emt 0:01:08]} (16... Nd7 $11) 17. Kh1 {[%emt 0:06:01]} (17. Bd2 $16) 17... Nd7 $11 {[%emt 0:01:38]} 18. b3 {[%emt 0:00:22]} Re7 {[%emt 0:05:22]} 19. Ba3 {[%emt 0:02:29][%cal Oe4e5,Bc1a3,Ba3b2,Bb2d4][%mdl 32]} Nf6 {[%emt 0:10:18]} 20. Qf3 {[%emt 0:04:27] [#]} (20. Rc1 $11) 20... Rd7 $2 {[%emt 0:02:05]} (20... Nxd5 $1 $15 {keeps the upper hand.} 21. Rec1 (21. exd5 Rxe1+ 22. Rxe1 Qa5 $15) 21... Nb4) 21. Bc4 $16 {[%emt 0:01:51]} Qa5 {[%emt 0:01:17]} 22. b4 {[%emt 0:03:53]} (22. Bb2 $1 $16) 22... Qd8 {[%emt 0:00:06]} (22... Qa4 $1 $11 {remains equal.}) 23. Bb2 $36 {[%emt 0:02:42][%mdl 2048] Keeping Black busy.} Rc7 {[%emt 0:02:58]} 24. Bb3 {[%emt 0:00:46]} Nd7 {[%emt 0:02:39] Inhibits e5.} 25. Rad1 {[%emt 0:00:28]} Qh4 {[%emt 0:00:17]} (25... a5 $16) 26. Rf1 {[%emt 0:01:36]} (26. e5 $1 $18) 26... Nf6 {[%emt 0:02:13]} (26... Rf8 $142) 27. Bxd4 {[%emt 0:04:34]} Nh5 {[%emt 0:00:14] And now ...Ng3+ would win.} 28. Kh2 {[%emt 0:07:09] Against Ng3} Rac8 $2 {[%emt 0:02:08]} (28... Bxd4 $16 29. Rxd4 Rac8) 29. g3 {[%emt 0:00:57]} ({Less strong is} 29. Bxa7 Nxf4 30. Bf2 (30. Qxf4 Be5 $15) 30... Qe7 $14) 29... Qe7 {[%emt 0:00:35]} 30. g4 $2 {[%emt 0:01:30]} (30. Bxa7 $6 Rc3 31. Be3 Qd7 $18) ({White should try} 30. e5 $18) 30... Bxd4 {[%emt 0:00:53]} (30... Rc3 $5 31. Bxc3 Rxc3 $16) 31. Rxd4 {[%emt 0:00:23]} Rc3 {[%emt 0:00:25]} 32. Rd3 {[%emt 0:00:09]} (32. Qf2 $1 $14 {was forced to keep a grip.} Ng7 33. e5) 32... Rxd3 $17 {[%emt 0:00:08]} 33. Qxd3 {[%emt 0:00:08] [#]} Nxf4 {[%emt 0:00:10][%mdl 512]} 34. Qd4 {[%emt 0:09:48]} ({Avoid the trap} 34. Rxf4 $2 Qe5 35. Qg3 Rc3 $19) 34... g5 {[%emt 0:00:38]} 35. Re1 {[%emt 0:00:36] [#]} f6 {[%emt 0:01:21] Prevents e5.} 36. Bc4 {[%emt 0:02:50]} (36. Re3 $17 {might work better.}) 36... Qe5 {[%emt 0:02:19]} (36... Kf7 $19 {Hoping for ...Qd7.} 37. Rd1 Qc7) 37. Qxe5 {[%emt 0:00:40]} fxe5 {[%emt 0:00:05][%mdl 4096] Endgame KRB-KRN} 38. Bb3 {[%emt 0:01:35][%mdl 8192]} (38. Bf1 $17 {is a better defense.}) 38... Rc3 $19 {[%emt 0:00:16]} 39. Ba4 {[%emt 0:01:49]} Rxh3+ {[%emt 0:01:14]} 40. Kg1 {[%emt 0:00:04]} Rc3 {[%emt 0:00:32]} 41. Bd7 {[%emt 0:30:38]} Rc2 {[%emt 0:30:20]} (41... h5 $142 {...hxg4 is the strong threat.} 42. gxh5 Kg7) 42. a4 {[%emt 0:02:08]} (42. a3 $142) 42... Kg7 {[%emt 0:00:55]} 43. b5 {[%emt 0:00:00]} (43. Kf1 $142) 43... h5 {[%emt 0:00:00]} 44. gxh5 {[%emt 0:00:00]} Kh6 {[%emt 0:00:00]} 45. Kh1 {[%emt 0:00:00]} Kxh5 {[%emt 0:00:00]} 46. b6 {[%emt 0:00:00]} axb6 {[%emt 0:00:00] Strongly threatening ...Rc7.} 47. Rb1 {[%emt 0:00:00]} (47. Rg1 $142) 47... Rc7 {[%emt 0:00:00]} 48. Bf5 {[%emt 0:00:00]} g4 {[%emt 0:00:00][%cal Bg5g4,Bg4g3][%mdl 32]} 49. Rg1 {[%emt 0:00:00]} Rg7 {[%emt 0:00:00]} 50. Kh2 {[%emt 0:00:00]} Kh4 {[%emt 0:00:00] ( -> ...g3+)} 51. Rg3 {[%emt 0:00:00]} Ne2 {[%emt 0:00:00]} 52. Re3 {[%emt 0:00:00]} g3+ {[%emt 0:00:00] Black mates.} 53. Kg2 {[%emt 0:00:00]} Nf4+ {[%emt 0:00:00]} 54. Kg1 {[%emt 0:00:00]} Rc7 {[%emt 0:00:00]} 55. Re1 {[%emt 0:00:00]} Rc2 {[%emt 0:00:00]} 56. Ra1 {[%emt 0:00:00]} Ne2+ {[%emt 0:00:00]} 57. Kf1 {[%emt 0:01:33]} Nd4 {[%emt 0:00:00]} 58. Ra3 {[%emt 0:00:29]} Rf2+ {[%emt 0:00:00] Weighted Error Value: White=0.71/Black=0.29 (precise)} 0-1

[Event "44th Chess Olympiad Open 2022"]
[Site "Chennai"]
[Date "2022.08.05"]
[Round "7.53"]
[White "Khoa, Goodwill"]
[Black "Ribbegren, Karl Johan"]
[Result "0-1"]
[ECO "E90"]
[WhiteElo "1850"]
[BlackElo "2198"]
[Annotator "NA RC"]
[PlyCount "83"]
[EventDate "2022.07.29"]
[EventType "team-tourn"]
[EventCountry "IND"]
[SourceTitle "playchess.com"]
[Source "ChessBase"]
[SourceQuality "1"]
[WhiteTeam "Namibia"]
[BlackTeam "Monaco"]
[WhiteTeamCountry "NAM"]
[BlackTeamCountry "MNC"]
[TimeControl "40/5400+30:1800+30"]

1. c4 {[%emt 0:00:04]} Nf6 {[%emt 0:00:29]} 2. Nc3 {[%emt 0:00:47]} g6 {[%emt 0:00:27]} 3. Nf3 {[%emt 0:00:54]} Bg7 {[%emt 0:00:09]} 4. d4 {[%emt 0:00:15]} O-O {[%emt 0:00:35]} 5. e4 {[%emt 0:00:06]} d6 {[%emt 0:01:10]} 6. h3 {[%emt 0:00:08]} e5 {[%emt 0:02:28]} 7. dxe5 {[%emt 0:05:55]} dxe5 {[%emt 0:00:09]} 8. Qxd8 {[%emt 0:00:11]} Rxd8 {[%emt 0:00:02]} 9. Bg5 {[%emt 0:00:26]} Re8 {[%emt 0:01:01]} 10. Nd5 {[%emt 0:01:35]} Nxd5 {[%emt 0:00:55]} 11. cxd5 {[%emt 0:00:10]} c6 {[%emt 0:02:48]} 12. Bc4 {[%emt 0:04:34]} cxd5 {[%emt 0:05:44]} 13. Bxd5 {[%emt 0:01:04]} Na6 {[%emt 0:05:11]} 14. O-O {[%emt 0:10:11]} Nc7 {[%emt 0:02:01]} 15. Bb3 {[%emt 0:06:21]} Be6 {[%emt 0:01:05]} 16. Rfd1 {[%emt 0:02:16]} a6 {[%emt 0:10:35]} 17. Bxe6 {[%emt 0:07:21]} Nxe6 {[%emt 0:01:37]} 18. Be3 {[%emt 0:02:13]} Rad8 {[%emt 0:05:17]} 19. Bb6 {[%emt 0:03:06]} Rxd1+ {[%emt 0:02:01]} 20. Rxd1 {[%emt 0:00:11]} Nd4 {[%emt 0:00:40]} 21. Nxd4 {[%emt 0:07:46]} exd4 {[%emt 0:00:09]} 22. f3 {[%emt 0:00:07]} Re6 {[%emt 0:03:27]} 23. Ba5 {[%emt 0:02:15]} f5 {[%emt 0:06:05]} 24. exf5 {[%emt 0:01:21]} gxf5 {[%emt 0:01:36]} 25. Kf2 {[%emt 0:00:47]} Kf7 {[%emt 0:03:05]} 26. Bc7 {[%emt 0:00:17]} Bh6 {[%emt 0:03:11]} 27. Ba5 {[%emt 0:06:23]} Be3+ {[%emt 0:03:48]} 28. Ke2 {[%emt 0:02:05]} Rg6 {[%emt 0:04:56]} 29. g4 {[%emt 0:01:49]} h5 {[%emt 0:07:21]} 30. Bd2 {[%emt 0:01:20]} hxg4 {[%emt 0:03:12]} 31. Bxe3 {[%emt 0:00:11]} gxf3+ {[%emt 0:01:03]} 32. Kxf3 {[%emt 0:00:12]} dxe3 {[%emt 0:00:39]} 33. Rd7+ {[%emt 0:01:01]} Ke8 {[%emt 0:00:51]} 34. Rxb7 {[%emt 0:00:13]} Re6 {[%emt 0:00:33]} 35. Ke2 {[%emt 0:03:47]} f4 {[%emt 0:00:58]} 36. Rb8+ {[%emt 0:02:51]} Kf7 {[%emt 0:02:16]} 37. Rb4 {[%emt 0:00:44]} f3+ {[%emt 0:00:52]} 38. Ke1 {[%emt 0:08:13]} f2+ {[%emt 0:04:03]} 39. Ke2 {[%emt 0:01:12]} Rf6 {[%emt 0:00:39]} 40. Rb7+ {[%emt 0:15:49]} Kg6 {[%emt 0:00:46]} 41. Kxe3 {[%emt 0:31:36]} f1=Q {[%emt 0:30:33]} 42. Kd4 {[%emt 0:00:13]} 0-1

[Event "44th Chess Olympiad Open 2022"]
[Site "Chennai"]
[Date "2022.08.05"]
[Round "7.54"]
[White "Okas, Walter"]
[Black "Ali Abdullahi, Farah"]
[Result "1-0"]
[ECO "E16"]
[WhiteElo "2191"]
[BlackElo "1892"]
[Annotator "NA RC"]
[PlyCount "105"]
[EventDate "2022.07.29"]
[EventType "team-tourn"]
[EventCountry "IND"]
[SourceTitle "playchess.com"]
[Source "ChessBase"]
[SourceQuality "1"]
[WhiteTeam "Uganda"]
[BlackTeam "Somalia"]
[WhiteTeamCountry "UGA"]
[BlackTeamCountry "SOM"]
[TimeControl "40/5400+30:1800+30"]

1. d4 {[%emt 0:00:10]} d5 {[%emt 0:00:43]} 2. Nf3 {[%emt 0:00:23]} Nf6 {[%emt 0:00:02]} 3. g3 {[%emt 0:00:11]} e6 {[%emt 0:00:27]} 4. Bg2 {[%emt 0:00:27]} c5 {[%emt 0:08:15]} 5. O-O {[%emt 0:00:44]} b6 {[%emt 0:00:29]} 6. c4 {[%emt 0:00:45]} Bb7 {[%emt 0:00:24]} 7. Ne5 {[%emt 0:03:51]} cxd4 {[%emt 0:01:21]} 8. cxd5 {[%emt 0:02:32]} Bxd5 {[%emt 0:02:24]} 9. Qxd4 {[%emt 0:00:34]} Bc5 {[%emt 0:04:40]} 10. Qa4+ {[%emt 0:01:31]} Nbd7 {[%emt 0:05:34]} 11. e4 {[%emt 0:09:23]} Bb7 {[%emt 0:01:03]} 12. Rd1 {[%emt 0:00:42]} h6 {[%emt 0:08:48]} 13. Nc3 {[%emt 0:02:34]} a6 {[%emt 0:01:16]} 14. b4 {[%emt 0:01:54]} Be7 {[%emt 0:03:14]} 15. Be3 {[%emt 0:01:52]} b5 {[%emt 0:04:15]} 16. Qb3 {[%emt 0:00:14]} O-O {[%emt 0:04:05]} 17. Rd3 {[%emt 0:05:13]} Qe8 {[%emt 0:09:02]} 18. Nxd7 {[%emt 0:04:56]} Nxd7 {[%emt 0:00:15]} 19. f4 {[%emt 0:01:23]} Bd8 {[%emt 0:07:09]} 20. a4 {[%emt 0:06:46]} Bb6 {[%emt 0:05:51]} 21. axb5 {[%emt 0:01:03]} axb5 {[%emt 0:00:36]} 22. Rxa8 {[%emt 0:02:03]} Qxa8 {[%emt 0:02:31]} 23. Bxb6 {[%emt 0:11:08]} Nxb6 {[%emt 0:00:07]} 24. h4 {[%emt 0:01:39]} Bc6 {[%emt 0:03:05]} 25. Kh2 {[%emt 0:03:48]} Nc4 {[%emt 0:00:35]} 26. Qc2 {[%emt 0:04:15]} Rc8 {[%emt 0:09:13]} 27. Qf2 {[%emt 0:02:20]} Be8 {[%emt 0:00:30]} 28. Qe2 {[%emt 0:02:27]} Bc6 {[%emt 0:02:10]} 29. g4 {[%emt 0:03:25]} Qb8 {[%emt 0:01:14]} 30. e5 {[%emt 0:07:40]} Bxg2 {[%emt 0:03:39]} 31. Kxg2 {[%emt 0:00:07]} Qb7+ {[%emt 0:00:58]} 32. Qf3 {[%emt 0:07:51]} Qb6 {[%emt 0:03:04]} 33. g5 {[%emt 0:00:20]} hxg5 {[%emt 0:00:22]} 34. hxg5 {[%emt 0:00:05]} Nb2 {[%emt 0:01:23]} 35. Rd6 {[%emt 0:00:40]} Qc7 {[%emt 0:00:10]} 36. Ne4 {[%emt 0:02:10]} Qc1 {[%emt 0:00:29]} 37. Rd7 {[%emt 0:02:49]} Rc2+ {[%emt 0:01:55]} 38. Kh3 {[%emt 0:00:23]} Rc8 {[%emt 0:00:19]} 39. Ng3 {[%emt 0:03:59]} Nc4 {[%emt 0:02:11]} 40. g6 {[%emt 0:00:36]} Nxe5 {[%emt 0:04:21]} 41. fxe5 {[%emt 0:30:51]} Qh6+ {[%emt 0:30:27]} 42. Qh5 {[%emt 0:00:09]} fxg6 {[%emt 0:01:28]} 43. Qxh6 {[%emt 0:00:49]} gxh6 {[%emt 0:00:01]} 44. Rb7 {[%emt 0:00:48]} Rc3 {[%emt 0:00:06]} 45. Rxb5 {[%emt 0:00:34]} h5 {[%emt 0:00:20]} 46. Rb6 {[%emt 0:01:55]} Kg7 {[%emt 0:01:50]} 47. Rxe6 {[%emt 0:00:35]} g5 {[%emt 0:00:38]} 48. Kg2 {[%emt 0:00:10]} Rc2+ {[%emt 0:00:51]} 49. Kf1 {[%emt 0:01:08]} h4 {[%emt 0:00:29]} 50. Nf5+ {[%emt 0:00:26]} Kf7 {[%emt 0:00:29]} 51. Rf6+ {[%emt 0:00:07]} Ke8 {[%emt 0:00:28]} 52. e6 {[%emt 0:01:45]} Rc4 {[%emt 0:00:42]} 53. Ng7+ {[%emt 0:01:23]} 1-0

[Event "44th Chess Olympiad Open 2022"]
[Site "Chennai"]
[Date "2022.08.05"]
[Round "7.54"]
[White "Egesa emmanuel"]
[Black "Abdulkadir Mohamed Warsame"]
[Result "1-0"]
[ECO "B47"]
[WhiteElo "2152"]
[BlackElo "1820"]
[Annotator "TA"]
[PlyCount "91"]
[EventDate "2022.07.29"]
[EventType "team-tourn"]
[EventCountry "IND"]
[SourceTitle "playchess.com"]
[Source "ChessBase"]
[SourceQuality "1"]
[WhiteTeam "Uganda"]
[BlackTeam "Somalia"]
[WhiteTeamCountry "UGA"]
[BlackTeamCountry "SOM"]
[TimeControl "40/5400+30:1800+30"]

{[%evp 9,91,21,50,27,9,25,26,16,20,23,23,23,19,-20,-18,-27,9,18,49,46,48,33,66,62,60,70,72,64,61,46,68,81,90,76,155,145,155,155,150,106,114,85,127,-13,155,162,167,160,174,85,96,96,85,91,97,66,73,40,39,35,31,27,29,-22,58,51,51,0,118,103,185,159,645,628,606,592,1418,1422,1325,1117,2875,2804,2037,2098]} 1. e4 {[%emt 0:00:10]} c5 {[%emt 0:02:32]} 2. Nf3 {[%emt 0:00:07][%cal Bg1f3,Bf3d4,Bd4b5][%mdl 32]} e6 {[%emt 0:00:07]} 3. d4 {[%emt 0:00:02]} cxd4 {[%emt 0:00:04]} 4. Nxd4 {[%emt 0:00:03]} Nc6 {[%emt 0:01:13]} 5. Nc3 {[%emt 0:00:05]} Qc7 {[%emt 0:00:08]} 6. Qd3 {[%emt 0:00:07] B47: Sicilian: Taimanov: 5 Nc3 Qc7 6 f4, 6 g3 and 6 Be2.} Nf6 {[%emt 0:01:35]} 7. Ndb5 {[%emt 0:04:39]} Qb8 {[%emt 0:00:42]} 8. Qg3 {[%emt 0:00:08] White has an edge.} d6 $1 {[%emt 0:00:14]} 9. Be3 {[%emt 0:03:07]} a6 {[%emt 0:08:23]} 10. Nd4 {[%emt 0:00:32]} h5 {[%emt 0:01:33][%cal Bh7h5,Bh5h4][%mdl 32]} 11. f4 {[%emt 0:03:26]} h4 $1 {[%emt 0:19:45]} 12. Qf3 {[%emt 0:00:35] [#]} Nxd4 $146 {[%emt 0:11:13]} (12... e5 $5 {[%cal Re5d4]} 13. Nb3 Nb4 $11) ({Predecessor:} 12... e5 13. Nb3 Bg4 14. Qf2 b5 15. a3 Be7 16. h3 Be6 17. f5 Bc4 18. Be2 Bxe2 19. Qxe2 {½-½ (40) Tari,A (2596)-Najer,E (2659) Moscow 2017}) 13. Bxd4 {[%emt 0:00:07]} e5 {[%emt 0:00:22]} 14. Bb6 {[%emt 0:07:13]} Bg4 {[%emt 0:20:45]} 15. Qf2 {[%emt 0:01:28]} exf4 {[%emt 0:06:13][%cal Od6d5]} 16. Qxf4 {[%emt 0:01:00]} Qc8 {[%emt 0:03:44]} 17. h3 {[%emt 0:03:20]} Be6 {[%emt 0:00:04]} 18. O-O-O {[%emt 0:00:58]} Be7 {[%emt 0:00:11]} 19. Nd5 {[%emt 0:05:43]} Bxd5 {[%emt 0:05:29]} 20. exd5 {[%emt 0:01:20]} Rh5 {[%emt 0:02:41]} 21. Be2 {[%emt 0:08:01]} Rxd5 {[%emt 0:01:44]} (21... Nxd5 $142 22. Qa4+ Qc6 23. Qxc6+ bxc6) 22. Qxh4 $16 {[%emt 0:01:24] Threatens to win with Rxd5.} Rxd1+ {[%emt 0:06:22]} 23. Rxd1 {[%emt 0:05:07]} Qc6 {[%emt 0:00:59]} 24. Qh8+ {[%emt 0:08:33]} Bf8 {[%emt 0:00:01]} 25. Bd4 {[%emt 0:00:06] White is more active.} Qe4 {[%emt 0:02:11] [#]} 26. Bxf6 {[%emt 0:03:29] A strong pair of Bishops.} (26. Bd3 $1 $16 Qf4+ 27. Kb1) 26... Qf4+ {[%emt 0:00:01]} (26... Qe3+ $11 27. Rd2 gxf6 28. Qxf6 Bh6 29. Qxd6 Bg5) 27. Kb1 {[%emt 0:00:11]} Qxf6 {[%emt 0:00:32]} 28. Bg4 {[%emt 0:00:13] Re1+ is the strong threat.} Qe7 {[%emt 0:02:24] Inhibits Re1.} 29. Qh5 {[%emt 0:00:21]} (29. Rf1 $18 {is more deadly.}) 29... g6 {[%emt 0:00:52]} 30. Qa5 {[%emt 0:00:04] Hoping for Re1.} Bg7 {[%emt 0:00:16]} 31. Qb6 {[%emt 0:03:29]} Rd8 {[%emt 0:00:54]} 32. Bf3 {[%emt 0:00:57]} Rd7 {[%emt 0:00:52]} 33. c4 {[%emt 0:01:03]} Be5 {[%emt 0:00:30]} 34. Bd5 {[%emt 0:00:13]} Kf8 {[%emt 0:00:50]} 35. Rf1 {[%emt 0:00:13]} Bf6 {[%emt 0:00:52][%cal Oe7e2]} 36. g4 {[%emt 0:01:09] [#]} ({White should try} 36. Qf2 Kg7 37. a4) 36... Qd8 {[%emt 0:00:56]} (36... Qe2 $1 $11 37. Qf2 Qd3+ 38. Ka1 Bd4) 37. Qe3 $14 {[%emt 0:03:02] And now Qh6+ would win.} Kg7 {[%emt 0:00:01] Prevents Qh6+.} 38. Rf3 {[%emt 0:00:30]} ({Better is} 38. a4 $14) 38... b6 {[%emt 0:00:50]} (38... Re7 $11 39. Qd2 Qe8) 39. Qf2 $36 {[%emt 0:00:37][%mdl 2048] White is really pushing.} Be5 {[%emt 0:01:20]} (39... Bh4 $16 {was called for.} 40. Rxf7+ Rxf7 41. Qxf7+ Kh6) 40. Bxf7 {[%emt 0:01:09]} (40. Rxf7+ $6 Rxf7 41. Qxf7+ Kh6 $14) 40... Qc7 $2 {[%emt 0:00:28] [#] A mistake that costs the game.} (40... b5 $16 41. Be6 Rc7 42. cxb5 Qg5) 41. Be6 $1 $18 {[%emt 0:32:42] Rf8 would kill now. White is clearly winning.} ({Weaker is} 41. Bd5 Qc5 $16) 41... Re7 {[%emt 0:30:00]} 42. Bd5 {[%emt 0:00:08] Intending Rf8 and mate.} Qc5 {[%emt 0:01:00] [#]} 43. Qh4 {[%emt 0:02:55]} Qg1+ {[%emt 0:00:00]} 44. Kc2 {[%emt 0:00:00]} Rc7 {[%emt 0:00:00]} 45. g5 {[%emt 0:00:00][%csl Gg5][%cal Rh4h6]} ({Inferior is} 45. Qd8 Rxc4+ 46. Bxc4 Qg2+ 47. Kc1 (47. Kb3 Qxf3+ 48. Kb4 Qf2 $15) 47... Qxf3 48. Qe7+ Kh6 49. Qh4+ Kg7 50. Qe7+ Kh6 51. Qh4+ Kg7 52. Qe7+ $11) 45... Qg2+ {[%emt 0:00:00]} 46. Rf2 {[%emt 0:00:00] Weighted Error Value: White=0.21 (precise) /Black=0.41} 1-0

[Event "44th Chess Olympiad Open 2022"]
[Site "Chennai"]
[Date "2022.08.05"]
[Round "7.54"]
[White "Abdirahman Omar Sheikh"]
[Black "Kawuma, Patrick"]
[Result "0-1"]
[ECO "E11"]
[WhiteElo "2051"]
[BlackElo "2270"]
[Annotator "NA RC"]
[PlyCount "54"]
[EventDate "2022.07.29"]
[EventType "team-tourn"]
[EventCountry "IND"]
[SourceTitle "playchess.com"]
[Source "ChessBase"]
[SourceQuality "1"]
[WhiteTeam "Somalia"]
[BlackTeam "Uganda"]
[WhiteTeamCountry "SOM"]
[BlackTeamCountry "UGA"]
[TimeControl "40/5400+30:1800+30"]

1. d4 {[%emt 0:00:18]} Nf6 {[%emt 0:00:07]} 2. c4 {[%emt 0:00:13]} e6 {[%emt 0:00:09]} 3. Nf3 {[%emt 0:00:20]} Bb4+ {[%emt 0:00:13]} 4. Bd2 {[%emt 0:00:22]} Qe7 {[%emt 0:00:16]} 5. a3 {[%emt 0:01:00]} Bxd2+ {[%emt 0:00:30]} 6. Nbxd2 {[%emt 0:00:07]} a5 {[%emt 0:07:34]} 7. e4 {[%emt 0:00:52]} d6 {[%emt 0:00:01]} 8. Bd3 {[%emt 0:02:31]} e5 {[%emt 0:00:39]} 9. d5 {[%emt 0:04:09]} a4 {[%emt 0:02:12]} 10. Bc2 {[%emt 0:02:46]} Bd7 {[%emt 0:00:11]} 11. Nb1 {[%emt 0:00:27]} O-O {[%emt 0:05:38]} 12. Nc3 {[%emt 0:00:38]} Qe8 {[%emt 0:00:02]} 13. h3 {[%emt 0:00:51]} Ra5 {[%emt 0:19:28]} 14. g4 {[%emt 0:05:05]} g6 {[%emt 0:00:00]} 15. Qd2 {[%emt 0:03:45]} b6 {[%emt 0:00:00]} 16. Qh6 {[%emt 0:02:15]} Kh8 {[%emt 0:00:31]} 17. Ng5 {[%emt 0:05:55]} Rg8 {[%emt 0:03:17]} 18. f4 {[%emt 0:08:11]} exf4 {[%emt 0:02:48]} 19. O-O {[%emt 0:01:44]} Rg7 {[%emt 0:02:56]} 20. Rxf4 {[%emt 0:01:24]} Ng8 {[%emt 0:00:17]} 21. Qh4 {[%emt 0:17:09]} f6 {[%emt 0:00:23]} 22. Rf3 {[%emt 0:03:50]} fxg5 {[%emt 0:00:25]} 23. Qxg5 {[%emt 0:00:40]} Qe7 {[%emt 0:08:50]} 24. Qe3 {[%emt 0:00:46]} Be8 {[%emt 0:05:15]} 25. Raf1 {[%emt 0:00:28]} Nd7 {[%emt 0:00:29]} 26. Qd4 {[%emt 0:06:53]} Ne5 {[%emt 0:03:16]} 27. Rf4 {[%emt 0:05:14]} Bd7 {[%emt 0:05:02]} 0-1